bitfinex-derivatives/quotes_ETHF0:USTF0_20251007
["timestamp","ask_amount","ask_price","bid_price","bid_amount"]
[1759832050448,1.63541007,4697.6,4697.5,1.13392749]
[1759832051444,1.25251007,4697.6,4697.5,1.13392749]
[1759832051851,1.25251007,4697.6,4697.5,0.81632749]
[1759832052154,1.25251007,4697.6,4697.5,0.21451749]
[1759832052344,1.25251007,4697.6,4697.5,0.75101749]
[1759832052748,1.25251007,4697.6,4697.5,0.96991749]
[1759832057260,0.50411007,4697.6,4697.5,1.09341749]
[1759832061264,0.00209225,4698.3,4698.2,1.13825]
[1759832061466,0.00209225,4698.3,4698.2,4.55905]
[1759832061666,0.4737209,4698.3,4698.2,4.55905]
[1759832062461,0.4737209,4698.3,4698.2,9.55905]
[1759832062671,0.1148,4699.5,4699.4,0.7554]
[1759832062672,0.7484,4699.5,4699.4,0.7554]
[1759832062868,1.21981981,4699.5,4699.4,0.9684]
[1759832063567,1.22199224,4699.5,4699.4,0.9684]
[1759832063770,1.22199224,4699.5,4699.3,0.38276]
[1759832063771,1.35259224,4699.5,4699.1,0.3176]
[1759832063960,1.26392243,4699.5,4699.4,0.213]
[1759832064161,0.7484,4698.9,4698.8,0.9193]
[1759832064366,1.21957986,4698.9,4698.8,1.1323]
[1759832064565,1.21957986,4698.9,4698.8,1.3512]
[1759832065364,0.47117986,4698.9,4698.8,1.3512]
[1759832065569,0.2057,4699.2,4699.1,0.82058]
[1759832065764,0.5307,4699.2,4699.1,1.35118]
[1759832065971,1.0015994,4699.2,4699.1,1.35118]
[1759832066868,0.6765994,4699.2,4699.1,1.35118]
[1759832068368,0.4708994,4699.2,4699.1,0.9684]
[1759832068570,1.0015994,4699.2,4699.1,0.9684]
[1759832068769,1.0015994,4699.2,4699.1,0.7495]
[1759832068770,1.2192994,4699.2,4699.1,0.7495]
[1759832068970,1.2192994,4699.2,4699.1,0.4319]
[1759832069161,1.2192994,4699.2,4699.1,0.2189]
[1759832069361,1.2192994,4699.2,4699.1,0.4319]
[1759832069771,1.2192994,4699.2,4699.1,0.7495]
[1759832069967,1.2192994,4699.2,4699.1,0.5365]
[1759832070166,1.2192994,4699.2,4699.1,0.9684]
[1759832071073,1.2192994,4699.2,4699.1,0.7554]
[1759832071272,1.2192994,4699.2,4699.1,0.9684]
[1759832071668,1.2192994,4699.2,4699.1,0.7554]
[1759832071875,1.2192994,4699.2,4699.1,0.9684]
[1759832073576,1.2192994,4699.2,4699.1,0.7554]
[1759832073774,1.2192994,4699.2,4699.1,0.9684]
[1759832074178,1.2192994,4699.2,4699.1,0.7554]
[1759832074478,1.2192994,4699.2,4699.1,0.9684]
[1759832075179,1.2192994,4699.2,4699.1,0.7554]
[1759832075379,1.2192994,4699.2,4699.1,0.9684]
[1759832075579,1.2192994,4699.2,4699.1,0.7495]
[1759832076077,0.7181,4698.9,4698.8,0.5405]
[1759832076272,1.1889994,4698.9,4698.8,0.7535]
[1759832076682,1.1889994,4698.9,4698.8,0.9581]
[1759832077578,1.5717994,4698.9,4698.8,1.3409]
[1759832078886,1.5717994,4698.9,4698.8,0.9581]
[1759832079185,1.5717994,4698.9,4698.8,1.3409]
[1759832079682,1.5717994,4698.9,4698.8,0.9581]
[1759832082387,1.5717994,4698.9,4698.8,1.3409]
[1759832083285,1.5717994,4698.9,4698.8,0.9581]
[1759832088076,0.8536994,4698.9,4698.8,1.3409]
[1759832088277,0.4708994,4698.9,4698.8,1.3409]
[1759832089380,0.6844994,4698.9,4698.8,1.3409]
[1759832090086,1.3651994,4698.9,4698.8,1.3409]
[1759832090287,1.5664994,4698.9,4698.8,1.3409]
[1759832091087,1.5664994,4698.9,4698.8,1.1279]
[1759832091282,1.5664994,4698.9,4698.8,1.3409]
[1759832091585,1.5664994,4698.9,4698.8,0.9581]
[1759832092188,1.5664994,4698.9,4698.8,1.3409]
[1759832093190,1.5664994,4698.9,4698.8,0.9581]
[1759832096988,1.5664994,4698.9,4698.4,0.3004]
[1759832096989,0.71643,4698.5,4698.4,0.3004]
[1759832097194,1.09564,4698.3,4698.2,3.2078]
[1759832097489,1.56822444,4698.3,4698.2,3.4208]
[1759832097686,0.00217243,4699.5,4699.0,0.38279]
[1759832097891,0.2979,4699.4,4699.3,0.38276]
[1759832098193,0.5115,4699.4,4699.3,41.18276]
[1759832098789,0.5115,4699.4,4699.3,41.39576]
[1759832098990,0.2979,4699.4,4699.3,41.39576]
[1759832100588,0.12217243,4699.5,4699.3,41.39576]
[1759832100992,0.2979,4699.4,4699.3,41.39576]
[1759832102386,0.2136,4699.1,4699.0,3.2078]
[1759832102587,0.7128,4699.1,4699.0,0.213]
[1759832102992,0.7128,4699.1,4698.5,3.2078]
[1759832102993,0.4179,4699.0,4698.6,41.18282]
[1759832103198,0.7128,4698.8,4698.7,0.213]
[1759832104200,0.3828,4698.9,4698.0,3.2078]
[1759832104201,0.7128,4698.1,4698.0,3.2078]
[1759832104400,0.7128,4698.1,4698.0,3.4208]
[1759832105795,0.7128,4698.1,4697.6,40.8]
[1759832105796,0.38287,4698.0,4697.8,0.38288]
[1759832106002,0.7154,4697.9,4697.8,0.38288]
[1759832106200,0.7154,4697.9,4697.8,0.213]
[1759832106995,0.3829,4697.6,4697.5,0.00151749]
[1759832107198,0.7154,4697.6,4697.5,0.21451749]
[1759832108495,0.7154,4697.6,4697.5,0.00151749]
[1759832108817,0.7154,4697.6,4697.5,0.21451749]
[1759832110705,0.7154,4696.7,4696.6,0.38298]
[1759832110905,0.7154,4696.7,4696.6,0.59598]
[1759832111805,0.7154,4696.7,4696.6,0.21549279]
[1759832112400,0.3058,4696.7,4696.6,0.21549279]
[1759832113101,0.5052,4696.7,4696.6,0.21549279]
[1759832114605,0.7154,4696.7,4696.6,0.21549279]
[1759832116411,0.68882,4696.2,4696.1,40.8]
[1759832116610,0.68882,4696.2,4696.0,3.2078]
[1759832116611,0.7154,4696.1,4696.0,0.38303]
[1759832116910,0.7154,4696.1,4696.0,0.59603]
[1759832117513,0.71776945,4696.1,4696.0,0.59758137]
[1759832120414,0.71776945,4696.1,4696.0,0.21455137]
[1759832120618,0.7154,4695.6,4695.5,3.2078]
[1759832120814,0.4096,4695.1,4695.0,3.59091]
[1759832121015,0.7154,4695.1,4695.0,44.60391]
[1759832121706,0.3058,4695.1,4695.0,44.60553213]
[1759832122015,0.1246,4695.5,4695.4,0.38308]
[1759832122213,0.1246,4695.5,4695.4,0.59608]
[1759832122516,0.1246,4696.0,4695.9,0.38304]
[1759832122721,0.4304,4696.0,4695.9,3.80384]
[1759832122919,0.4304,4696.0,4695.9,44.60384]
[1759832134527,0.3069,4696.3,4695.9,49.2208]
[1759832134723,0.1246,4696.5,4696.4,0.383]
[1759832134923,0.6315,4696.5,4696.4,0.596]
[1759832135320,0.8369,4696.5,4696.4,0.596]
[1759832135619,0.83920096,4696.5,4696.4,0.596]
[1759832135825,0.1264,4696.0,4695.9,44.39084]
[1759832136025,0.4333,4696.0,4695.9,44.60384]
[1759832142136,0.81633,4696.0,4695.9,3.80384]
[1759832142329,0.8662,4696.0,4695.9,3.80384]
[1759832142526,1.24923,4696.0,4695.9,3.80384]
[1759832143138,0.8662,4696.0,4695.9,3.80384]
[1759832145032,1.24923,4696.0,4695.9,3.80384]
[1759832145437,1.24923,4696.0,4695.9,3.4208]
[1759832145841,1.24923,4696.0,4695.9,3.80384]
[1759832146039,1.24923,4696.0,4695.9,0.213]
[1759832146243,6.24923,4696.0,4695.9,0.213]
[1759832148250,1.12508,4695.4,4695.3,3.2078]
[1759832148442,0.742,4695.1,4695.0,0.38473213]
[1759832148742,0.742,4695.1,4695.0,0.59773213]
[1759832151348,1.1251,4695.1,4695.0,0.21462213]
[1759832151541,1.1251,4695.1,4695.0,0.00162213]
[1759832151742,1.1251,4695.1,4695.0,0.21462213]
[1759832152246,6.1251,4695.1,4695.0,0.21462213]
[1759832153748,8.93174652,4695.1,4695.0,0.09293413]
[1759832154248,0.742,4694.4,4694.3,3.59097]
[1759832154550,0.742,4694.4,4694.3,3.80397]
[1759832154750,0.742,4694.4,4694.3,3.80598299]
[1759832158147,0.742,4694.4,4694.3,0.21501299]
[1759832158352,5.742,4694.4,4694.3,0.21501299]
[1759832160747,0.742,4694.4,4694.3,0.21501299]
[1759832160953,0.3091,4694.4,4694.3,3.42281299]
[1759832161554,0.742,4694.4,4694.3,3.42281299]
[1759832164558,0.3091,4694.4,4694.3,3.42281299]
[1759832166752,0.3091,4694.4,4694.3,3.80598299]
[1759832169664,0.1704,4694.8,4694.7,0.38314]
[1759832169858,0.1704,4694.8,4694.7,0.59614]
[1759832170057,0.38305,4695.8,4695.0,0.95778]
[1759832170264,0.3166,4695.4,4695.3,0.38309]
[1759832170465,0.3166,4695.4,4695.3,0.59609]
[1759832171061,0.3166,4695.9,4695.6,0.95767]
[1759832171258,0.3166,4695.9,4695.8,3.59085]
[1759832171460,0.3166,4695.9,4695.8,44.39085]
[1759832171859,0.1264,4696.0,4695.8,44.39085]
[1759832172060,0.3166,4696.2,4696.0,0.38303]
[1759832172272,0.86010096,4696.5,4696.4,0.383]
[1759832172564,0.86010096,4696.5,4696.4,0.596]
[1759832175962,0.86010096,4696.5,4696.4,0.383]
[1759832176274,0.8578,4696.0,4695.9,0.38304]
[1759832176564,0.8578,4696.0,4695.9,0.59604]
[1759832186076,0.8578,4696.0,4695.9,0.213]
[1759832186077,3.99898889,4696.0,4695.9,0.213]
[1759832186869,8.99898889,4696.0,4695.9,0.213]
[1759832189377,8.99898889,4696.0,4695.9,0.59604]
[1759832189578,8.99898889,4696.0,4695.9,0.213]
[1759832189778,8.99898889,4696.0,4695.9,0.59604]
[1759832190172,8.99898889,4696.0,4695.9,0.213]
[1759832190367,0.80357,4695.6,4695.5,0.59607]
[1759832190679,1.12017,4695.6,4695.5,0.59607]
[1759832191381,0.7371,4695.6,4695.5,0.59607]
[1759832191879,1.12016,4695.6,4695.5,0.38307]
[1759832192085,0.4205,4694.7,4694.6,3.2078]
[1759832192379,0.4205,4694.7,4694.6,3.4208]
[1759832192380,0.7371,4694.7,4694.6,3.4208]
[1759832193179,0.7371,4694.7,4694.6,3.80395]
[1759832197476,0.5192,4694.7,4694.6,3.80395]
[1759832199182,0.7376,4694.7,4694.6,3.80395]
[1759832207578,1.14036,4694.4,4694.3,0.00201299]
[1759832207775,1.14036,4694.4,4694.3,0.59818299]
[1759832207974,3.49428457,4694.4,4694.3,0.59818299]
[1759832208177,3.87744457,4694.4,4694.3,0.38518299]
[1759832208482,3.87744457,4694.4,4694.3,0.59818299]
[1759832208483,3.49428457,4694.4,4694.3,0.59818299]
[1759832208690,0.3192,4694.4,4694.3,0.59818299]
[1759832209382,0.1207,4695.0,4694.6,0.38315]
[1759832209588,0.4399,4695.0,4694.9,0.38312]
[1759832209788,0.4399,4695.0,4694.9,0.59612]
[1759832211084,0.8779,4695.0,4694.9,0.59612]
[1759832211484,0.3192,4694.9,4694.3,4.16773299]
[1759832211689,0.5388,4694.4,4694.3,3.20981299]
[1759832211884,0.5388,4694.4,4694.3,3.80598299]
[1759832212292,0.3192,4694.4,4694.3,3.80598299]
[1759832213889,0.3192,4694.4,4694.3,3.59298299]
[1759832214084,0.3192,4694.4,4694.3,3.80598299]
[1759832217396,0.7572,4694.4,4694.3,3.80598299]
[1759832217585,0.7572,4694.4,4694.3,0.00201299]
[1759832217789,0.7572,4694.4,4694.3,0.21501299]
[1759832219886,1.2313939,4694.4,4694.3,0.21501299]
[1759832223192,4.06126228,4694.4,4694.3,0.21501299]
[1759832223397,0.7572,4693.4,4693.3,3.2078]
[1759832223596,0.7572,4693.4,4693.3,3.80405]
[1759832224391,0.7572,4693.4,4693.3,3.80566053]
[1759832231310,0.5388,4693.4,4693.3,3.80566053]
[1759832232605,0.1315,4693.5,4693.4,0.38324]
[1759832232803,0.4907,4693.6,4693.5,0.38324]
[1759832232998,0.4907,4693.6,4693.5,41.39624]
[1759832234012,0.4907,4693.6,4693.5,41.18324]
[1759832234310,0.4907,4693.6,4693.5,41.39624]
[1759832234507,0.4907,4693.6,4693.5,0.59624]
[1759832234812,0.3203,4693.6,4693.5,0.59624]
[1759832235111,0.5289,4693.6,4693.5,0.59624]
[1759832235309,0.7422,4693.6,4693.5,0.59624]
[1759832236614,0.7422,4693.6,4693.5,0.38324]
[1759832236912,0.7422,4693.6,4693.5,0.59624]
[1759832238308,0.7422,4693.6,4693.5,0.38324]
[1759832238309,1.12543,4693.6,4693.5,0.38324]
[1759832238510,0.7422,4693.4,4693.3,0.00161053]
[1759832238809,0.7422,4693.4,4693.3,0.21461053]
[1759832239114,0.7422,4693.4,4693.3,0.59786053]
[1759832242218,1.12544,4693.4,4693.3,0.59786053]
[1759832243914,1.12544,4693.4,4693.3,0.00161053]
[1759832244111,1.12544,4693.4,4693.3,0.21461053]
[1759832244312,3.94450511,4693.4,4693.3,0.21461053]
[1759832245913,3.94450511,4693.4,4693.3,0.00161053]
[1759832246221,4.41753901,4693.4,4693.3,0.00161053]
[1759832246721,3.94450511,4693.4,4693.3,0.00161053]
[1759832247222,4.41773161,4693.4,4693.3,0.38486053]
[1759832247618,3.94450511,4693.4,4693.3,0.38486053]
[1759832248017,4.41772144,4693.4,4693.3,0.38486053]
[1759832248215,4.41772824,4693.4,4693.3,0.00161053]
[1759832250824,4.41772824,4693.4,4693.3,0.38486053]
[1759832252622,3.56126511,4693.4,4693.3,0.38486053]
[1759832252822,0.3203,4693.4,4693.3,0.38486053]
[1759832253027,0.1314,4693.5,4693.3,3.59266053]
[1759832253230,0.3203,4693.4,4693.3,3.59266053]
[1759832253423,0.3203,4693.4,4693.3,44.39266053]
[1759832253932,0.5289,4693.4,4693.3,3.59266053]
[1759832254618,0.7422,4693.4,4693.3,3.59266053]
[1759832255520,0.7422,4693.4,4693.3,0.59786053]
[1759832257630,0.7422,4693.4,4693.3,0.38486053]
[1759832257822,1.21553311,4693.4,4693.3,0.59786053]
[1759832260732,1.59877311,4693.4,4693.3,0.59786053]
[1759832261732,4.39417661,4693.4,4693.3,0.59786053]
[1759832264036,4.01093661,4693.4,4693.3,0.59786053]
[1759832264434,4.39417661,4693.4,4693.3,0.59786053]
[1759832265134,4.01093661,4693.4,4693.3,0.59786053]
[1759832265833,0.3203,4693.4,4693.3,0.59786053]
[1759832270434,0.5377,4693.4,4693.3,0.59786053]
[1759832272140,0.7503,4693.4,4693.3,0.59786053]
[1759832274042,0.5377,4693.4,4693.3,0.59786053]
[1759832274244,0.3203,4693.4,4693.3,0.59786053]
[1759832274443,0.5377,4693.4,4693.3,0.59786053]
[1759832274644,0.7503,4693.4,4693.3,0.59786053]
[1759832277041,1.22358898,4693.4,4693.3,0.59786053]
[1759832277248,1.22358898,4693.4,4693.3,0.38486053]
[1759832277434,1.22358898,4693.4,4693.3,0.59786053]
[1759832278438,1.22364252,4693.4,4693.3,0.59786053]
[1759832279744,1.60688252,4693.4,4693.3,0.59786053]
[1759832279951,1.60688252,4693.4,4693.3,0.21461053]
[1759832280742,1.60688252,4693.4,4693.3,0.59786053]
[1759832283551,4.3347775,4693.4,4693.3,0.21461053]
[1759832283852,4.3347775,4693.4,4693.3,0.59786053]
[1759832284051,4.3347775,4693.4,4693.3,0.21461053]
[1759832285249,0.7492,4692.2,4692.1,3.59115]
[1759832285450,1.13254,4692.2,4692.0,0.38336]
[1759832285653,0.7492,4691.9,4691.8,0.38337]
[1759832285946,0.7492,4691.9,4691.8,0.59637]
[1759832286148,0.75111392,4691.9,4691.8,0.00228526]
[1759832286350,3.49711133,4691.9,4691.8,0.00228526]
[1759832286549,0.75111392,4691.9,4691.8,0.00228526]
[1759832289654,3.47970346,4691.9,4691.8,0.00228526]
[1759832289860,0.7492,4690.6,4690.5,3.59128]
[1759832290050,0.7492,4690.6,4690.5,3.80428]
[1759832290952,0.7492,4690.6,4690.5,3.80700286]
[1759832294462,0.1252,4691.0,4690.9,0.38345]
[1759832294659,0.1252,4691.0,4690.9,0.59645]
[1759832294960,0.00191392,4691.9,4691.8,0.2188]
[1759832295151,0.5442,4693.0,4692.9,0.80588]
[1759832295356,0.3247,4693.0,4692.9,1.27958]
[1759832295562,0.5442,4694.0,4693.9,0.602]
[1759832295758,0.5442,4694.0,4693.9,0.815]
[1759832295959,3.32424565,4694.0,4693.9,0.815]
[1759832296160,3.32665109,4694.0,4693.9,0.817487]
[1759832297063,3.65685109,4694.0,4693.9,0.817487]
[1759832298662,3.65685109,4694.0,4693.9,1.021287]
[1759832299663,0.00240544,4694.0,4693.9,1.281987]
[1759832300564,0.00240544,4694.0,4693.9,6.281987]
[1759832301569,0.00240544,4694.0,4693.9,47.081987]
[1759832304868,0.33260544,4694.0,4693.9,47.081987]
[1759832305764,0.00240544,4694.0,4693.9,47.081987]
[1759832307972,0.00240544,4694.0,4693.9,50.289787]
[1759832308470,0.87680544,4694.0,4693.9,4.229087]
[1759832308668,0.87680544,4694.0,4693.9,4.489787]
[1759832308868,0.65730544,4694.0,4693.9,4.489787]
[1759832309068,0.33260544,4694.0,4693.9,4.489787]
[1759832309270,0.00240544,4694.0,4693.9,4.489787]
[1759832309569,0.33260544,4694.0,4693.9,4.489787]
[1759832310479,0.00240544,4694.0,4693.9,4.489787]
[1759832310773,0.00240544,4694.0,4693.9,9.489787]
[1759832311163,0.00240544,4694.0,4693.9,50.289787]
[1759832311874,0.0212,4694.9,4694.8,0.6809]
[1759832312068,0.0212,4694.9,4694.8,4.48483]
[1759832312268,0.7492,4695.4,4695.3,0.60189]
[1759832312470,0.7492,4695.4,4695.3,0.59609]
[1759832312772,0.6749,4695.0,4694.9,41.18312]
[1759832313075,0.8744,4695.0,4694.9,0.213]
[1759832313372,0.92731,4695.0,4694.9,0.213]
[1759832313571,0.71333,4694.8,4694.7,41.18313]
[1759832313772,0.71333,4694.8,4694.7,41.39613]
[1759832313972,1.13233,4694.8,4694.7,0.59613]
[1759832314274,0.7492,4694.4,4694.3,3.6304]
[1759832314474,0.7492,4694.4,4694.3,4.1016]
[1759832314674,0.5297,4694.4,4694.3,4.22657]
[1759832314973,0.75,4694.4,4694.3,4.22657]
[1759832315771,0.75,4694.4,4694.3,4.01357]
[1759832315969,0.38317,4694.3,4694.2,0.38318]
[1759832316173,1.14437,4694.3,4694.2,0.59618]
[1759832316373,1.14437,4694.3,4694.2,0.81598]
[1759832316975,0.7612,4694.3,4694.2,0.81598]
[1759832321379,1.14437,4694.3,4694.2,0.213]
[1759832321575,0.3364,4694.0,4693.9,0.002487]
[1759832321780,0.2083,4692.8,4692.6,3.2078]
[1759832321980,0.5155,4692.7,4692.6,3.59111]
[1759832322183,0.7253,4692.7,4692.6,3.80411]
[1759832322773,0.7253,4692.7,4692.6,0.59809954]
[1759832326972,0.5155,4692.7,4692.6,0.59809954]
[1759832327174,3.2078,4693.1,4692.9,0.38328]
[1759832327374,3.515,4693.1,4693.0,0.213]
[1759832327583,3.515,4693.1,4693.0,41.013]
[1759832328682,0.3072,4693.1,4693.0,41.013]
[1759832329280,0.7253,4693.1,4693.0,0.213]
[1759832331186,0.8519,4693.0,4692.9,0.38328]
[1759832331378,0.8519,4693.0,4692.9,0.59628]
[1759832332580,0.8519,4693.0,4692.9,0.213]
[1759832339889,1.23518,4693.0,4692.9,0.213]
[1759832341897,0.81716,4692.0,4691.9,33.61637]
[1759832342089,1.23526,4692.0,4691.8,0.213]
[1759832342500,0.7253,4691.9,4691.8,0.59637]
[1759832342995,0.72692225,4691.9,4691.8,0.59801093]
[1759832347303,0.72692225,4691.9,4691.8,0.21464093]
[1759832348800,1.11029225,4691.9,4691.8,0.21464093]
[1759832350399,1.11029225,4691.9,4691.8,0.59801093]
[1759832350601,0.72692225,4691.9,4691.8,0.59801093]
[1759832350798,1.11029225,4691.9,4691.8,0.59801093]
[1759832352096,1.11029225,4691.9,4691.8,0.21464093]
[1759832353003,1.11029225,4691.9,4691.8,0.59801093]
[1759832355502,1.11029225,4691.9,4691.8,0.21464093]
[1759832356005,1.11029225,4691.9,4691.8,0.59801093]
[1759832357606,0.51712225,4691.9,4691.8,0.59801093]
[1759832357798,0.30882225,4691.9,4691.8,0.59801093]
[1759832358203,0.51652225,4691.9,4691.8,0.59801093]
[1759832359706,0.30882225,4691.9,4691.8,0.59801093]
[1759832359903,0.00162225,4691.9,4691.8,5.59801093]
[1759832360214,0.33012225,4691.9,4691.8,5.59801093]
[1759832360511,0.53782225,4691.9,4691.8,0.38501093]
[1759832360701,0.53782225,4691.9,4691.8,0.59801093]
[1759832361201,0.33012225,4691.9,4691.8,0.59801093]
[1759832362712,0.33012225,4691.9,4691.8,41.39801093]
[1759832365307,0.00162225,4691.9,4691.8,41.39801093]
[1759832365610,0.33012225,4691.9,4691.8,41.39801093]
[1759832366400,0.00162225,4691.9,4691.8,46.39801093]
[1759832366709,0.4551,4693.5,4693.4,0.38324]
[1759832367011,0.4551,4693.5,4693.4,0.59624]
[1759832367404,0.4551,4693.5,4693.4,41.39624]
[1759832367604,0.1208,4694.0,4693.9,0.3832]
[1759832367812,0.4493,4694.0,4693.9,0.5962]
[1759832368408,0.4493,4693.5,4693.4,41.18324]
[1759832368600,0.45150315,4693.5,4693.4,41.39624]
[1759832370610,0.12300315,4693.5,4693.4,41.39624]
[1759832370815,0.00220315,4693.5,4693.4,41.39624]
[1759832371306,0.45150315,4693.5,4693.4,41.39624]
[1759832372007,0.45150315,4693.5,4693.4,41.18324]
[1759832372214,0.45150315,4693.5,4693.4,74.63224]
[1759832372819,0.45150315,4693.5,4693.4,40.8]
[1759832373117,0.8624,4693.0,4692.9,0.38328]
[1759832373307,0.8624,4693.0,4692.9,0.59628]
[1759832374310,0.8624,4693.0,4692.8,44.0078]
[1759832374311,1.24568,4693.0,4692.8,40.8]
[1759832374614,0.749,4692.4,4692.3,3.59113]
[1759832374815,0.749,4692.4,4692.3,3.80413]
[1759832375016,0.5296,4692.4,4692.3,44.60413]
[1759832377116,0.3149,4692.4,4692.3,44.60413]
[1759832389323,0.3177,4692.9,4692.8,0.38329]
[1759832389523,0.1208,4693.0,4692.8,0.38329]
[1759832389524,0.4385,4693.0,4692.8,0.59629]
[1759832389829,0.3177,4692.9,4692.8,0.59629]
[1759832393435,0.3177,4692.9,4692.8,5.87029]
[1759832394027,0.3177,4692.9,4692.8,0.59629]
[1759832394229,0.4385,4693.0,4692.8,3.80409]
[1759832394732,0.3177,4692.9,4692.8,3.80409]
[1759832398035,0.34280315,4693.5,4693.4,0.71264]
[1759832398237,0.12300315,4693.5,4693.4,1.02864]
[1759832399425,0.12300315,4693.5,4693.4,45.03644]
[1759832399426,0.00220315,4693.5,4693.4,45.03644]
[1759832399625,3.15e-06,4693.5,4693.4,45.03644]
[1759832400933,0.3177,4694.1,4694.0,0.81559]
[1759832401137,3.2078,4694.6,4694.4,0.81556]
[1759832401138,0.4476,4694.5,4694.4,0.81556]
[1759832401435,0.4476,4694.5,4694.4,1.02856]
[1759832401939,0.45033655,4694.5,4694.4,1.02856]
[1759832402236,0.32043655,4694.5,4694.4,1.02856]
[1759832402834,0.32043655,4694.5,4694.4,41.82856]
[1759832403431,0.00273655,4694.5,4694.4,41.82856]
[1759832403939,6.55e-06,4694.5,4694.4,41.82856]
[1759832404329,0.43480655,4694.5,4694.4,74.95556]
[1759832405036,0.43480655,4694.5,4694.4,41.51256]
[1759832405334,0.43480655,4694.5,4694.4,74.95456]
[1759832406626,0.43480655,4694.5,4694.4,75.05796]
[1759832407438,6.55e-06,4694.5,4694.4,74.95456]
[1759832409533,6.55e-06,4694.5,4694.4,75.05796]
[1759832409738,6.55e-06,4694.5,4694.4,74.95456]
[1759832412641,6.55e-06,4694.5,4694.4,80.22856]
[1759832413239,0.30690655,4694.5,4694.4,80.22856]
[1759832413439,0.30690655,4694.5,4694.4,74.95456]
[1759832413735,0.43480655,4694.5,4694.4,41.51256]
[1759832413940,0.43480655,4694.5,4694.4,41.56086]
[1759832414534,0.85640655,4694.5,4694.4,0.76086]
[1759832414834,6.55e-06,4694.5,4694.4,1.02976]
[1759832415034,6.55e-06,4694.5,4694.4,41.51336]
[1759832415238,0.12790655,4694.5,4694.4,41.72636]
[1759832415439,0.43480655,4694.5,4694.4,41.51336]
[1759832415738,0.43480655,4694.5,4694.4,41.72636]
[1759832416338,0.85640655,4694.5,4694.4,0.3302]
[1759832416533,0.4216,4694.3,4694.2,0.38318]
[1759832416731,0.7285,4694.3,4694.2,0.76168]
[1759832416930,0.7285,4694.3,4694.2,41.72718]
[1759832418429,0.7285,4694.3,4694.1,0.38318]
[1759832418640,0.7285,4694.2,4694.1,0.38318]
[1759832418832,0.7285,4694.2,4694.1,0.59618]
[1759832420037,0.7285,4693.8,4693.7,40.8]
[1759832420237,0.7285,4693.8,4693.7,0.76172]
[1759832421838,1.11171,4693.8,4693.6,0.38323]
[1759832422043,1.11171,4693.8,4693.7,0.213]
[1759832422644,0.7285,4693.3,4693.2,41.18326]
[1759832422848,0.7285,4693.3,4693.2,0.76176]
[1759832423841,0.7285,4693.3,4693.2,0.213]
[1759832425343,0.7285,4693.3,4693.2,0.544]
[1759832425543,0.3069,4693.7,4693.6,0.1034]
[1759832425753,0.4348,4694.0,4693.9,0.8176]
[1759832425950,3.2078,4694.1,4694.0,0.4344]
[1759832426444,0.12790655,4694.5,4694.1,0.38319]
[1759832426639,0.64170655,4694.5,4694.4,0.71416]
[1759832426844,0.85640655,4694.5,4694.4,0.92716]
[1759832427147,0.85640655,4694.5,4694.4,0.59616]
[1759832428849,0.85640655,4694.5,4694.4,0.92716]
[1759832430041,0.43480655,4694.5,4694.4,1.03056]
[1759832430242,6.55e-06,4694.5,4694.4,0.92716]
[1759832430543,6.55e-06,4694.5,4694.4,34.15416]
[1759832432248,0.43480655,4694.5,4694.4,34.15416]
[1759832432448,0.43480655,4694.5,4694.4,34.25756]
[1759832432650,0.43480655,4694.5,4694.4,34.25556]
[1759832433451,6.55e-06,4694.5,4694.4,34.15216]
[1759832435950,6.55e-06,4694.5,4694.4,74.95216]
[1759832436652,0.1279,4696.0,4694.5,10.53682]
[1759832436856,0.7483,4696.4,4696.3,0.71141]
[1759832437052,0.7483,4696.4,4696.3,0.213]
[1759832437653,0.75045036,4696.4,4696.3,0.21504275]
[1759832437950,0.75045036,4696.4,4696.3,0.54604275]
[1759832438151,0.32165036,4696.4,4696.3,0.64944275]
[1759832438349,0.00215036,4696.4,4696.3,0.64944275]
[1759832438751,0.31585036,4696.4,4696.3,0.64944275]
[1759832439553,0.31585036,4696.4,4696.3,41.44944275]
[1759832441151,0.31585036,4696.4,4696.3,41.34604275]
[1759832441356,0.31585036,4696.4,4696.3,41.13304275]
[1759832441554,0.31585036,4696.4,4696.3,41.34604275]
[1759832441754,0.31585036,4696.4,4696.3,40.80204275]
[1759832441953,0.74525036,4696.4,4696.3,0.21504275]
[1759832442358,0.74525036,4696.4,4696.3,0.54604275]
[1759832442557,0.00215036,4696.4,4696.3,0.64944275]
[1759832443666,0.7195,4697.3,4697.2,0.54843]
[1759832443855,0.9325,4697.3,4697.2,0.76143]
[1759832444054,0.7431,4697.3,4697.2,41.56143]
[1759832444665,0.74473648,4697.3,4697.2,41.56143]
[1759832444861,0.74473648,4697.3,4697.2,0.92693]
[1759832445061,0.52833648,4697.3,4697.2,0.92693]
[1759832445261,0.52833648,4697.3,4697.2,41.72693]
[1759832445465,0.31533648,4697.3,4697.2,41.83033]
[1759832445764,0.31533648,4697.3,4697.2,1.03033]
[1759832446066,0.52833648,4697.3,4697.2,0.92693]
[1759832446267,0.31533648,4697.3,4697.2,0.92693]
[1759832446465,0.31533648,4697.3,4697.2,41.83033]
[1759832447369,0.31533648,4697.3,4697.2,41.72693]
[1759832448268,0.31533648,4697.3,4697.2,41.51393]
[1759832448469,0.31533648,4697.3,4697.2,41.72693]
[1759832451071,0.00163648,4697.3,4697.2,41.83033]
[1759832451266,0.31533648,4697.3,4697.2,41.83033]
[1759832451770,0.31533648,4697.3,4697.2,41.72693]
[1759832454869,0.4294,4697.0,4696.9,0.38296]
[1759832455170,0.8727,4697.0,4696.9,0.213]
[1759832455374,0.6563,4696.5,4696.4,0.71399]
[1759832455573,0.6563,4696.5,4696.4,0.92699]
[1759832455771,0.8727,4696.5,4696.4,0.544]
[1759832456471,0.8727,4696.5,4696.4,41.344]
[1759832456971,0.8727,4696.5,4696.4,0.544]
[1759832457782,0.8727,4696.5,4696.4,0.3785]
[1759832458080,0.8727,4696.5,4696.4,0.213]
[1759832460080,0.383,4696.4,4696.3,0.00204275]